fUST/lending_fUST_20250430
["ID","MTS","AMOUNT","RATE_DAILY","PERIOD"]
[359423293,1746004252374,-400.0,0.00027397,2]
[359423295,1746004252384,-400.0,0.00027397,2]
[359423297,1746004252394,-400.0,0.00027397,2]
[359423299,1746004252404,-157.89691925,0.00027397,2]
[359423301,1746004252414,-400.0,0.00027397,2]
[359423303,1746004252426,-400.0,0.00027397,2]
[359423305,1746004252436,-400.0,0.00027397,2]
[359423307,1746004252446,-501.53713645,0.00027397,2]
[359423309,1746004252458,-400.0,0.00027397,2]
[359423311,1746004252467,-522.15574441,0.00027397,2]
[359423313,1746004252477,-407.75463192,0.00027397,2]
[359423315,1746004252487,-402.92391108,0.00027397,2]
[359423317,1746004252498,-400.0,0.00027397,2]
[359423319,1746004252508,-400.0,0.00027397,2]
[359423321,1746004252518,-400.0,0.00027397,2]
[359423323,1746004252527,-400.0,0.00027397,2]
[359423325,1746004252537,-400.0,0.00027397,2]
[359423327,1746004252547,-426.79128508,0.00027397,2]
[359423329,1746004252557,-400.0,0.00027397,2]
[359423331,1746004252567,-432.67,0.00027397,2]
[359423332,1746004252580,-321.42893613,0.00027397,2]
[359423334,1746004252590,-500.0,0.00027397,2]
[359423336,1746004252600,-400.0,0.00027397,2]
[359423338,1746004252610,-400.0,0.00027397,2]
[359423340,1746004252621,-400.0,0.00027397,2]
[359423342,1746004252630,-400.0,0.00027397,2]
[359423344,1746004252640,-400.0,0.00027397,2]
[359423346,1746004252650,-539.77,0.00027397,2]
[359423348,1746004252660,-501.36925118,0.00027397,2]
[359423350,1746004252670,-400.0,0.00027397,2]
[359423352,1746004252680,-400.0,0.00027397,2]
[359423354,1746004252690,-400.0,0.00027397,2]
[359423356,1746004252700,-233.77280601,0.00027397,2]
[359423358,1746004252710,-456.03,0.00027397,2]
[359423360,1746004252720,-400.0,0.00027397,2]
[359423362,1746004252729,-400.0,0.00027397,2]
[359423364,1746004252739,-400.0,0.00027397,2]
[359423366,1746004252748,-400.0,0.00027397,2]
[359423368,1746004252757,-500.0,0.00027397,2]
[359423370,1746004252767,-890.53,0.00027397,2]
[359423372,1746004252776,-510.13855708,0.00027397,2]
[359423374,1746004252785,-400.0,0.00027397,2]
[359423376,1746004252795,-400.0,0.00027397,2]
[359423378,1746004252804,-507.4899108,0.00027397,2]
[359423380,1746004252813,-400.0,0.00027397,2]
[359423382,1746004252824,-400.0,0.00027397,2]
[359423384,1746004252834,-400.0,0.00027397,2]
[359423386,1746004252843,-400.0,0.00027397,2]
[359423388,1746004252852,-466.27,0.00027397,2]
[359423390,1746004252862,-400.0,0.00027397,2]
[359423392,1746004252871,-400.0,0.00027397,2]
[359423393,1746004252880,-400.0,0.00027397,2]
[359423395,1746004252890,-204.93874451,0.00027397,2]
[359423397,1746004252900,-400.0,0.00027397,2]
[359423399,1746004252909,-501.09344392,0.00027397,2]
[359423401,1746004252919,-500.0,0.00027397,2]
[359423403,1746004252928,-400.0,0.00027397,2]
[359423405,1746004252937,-404.41271928,0.00027397,2]
[359423407,1746004252947,-400.0,0.00027397,2]
[359423409,1746004252956,-400.0,0.00027397,2]
[359423411,1746004252965,-400.0,0.00027397,2]
[359423413,1746004252974,-501.11093756,0.00027397,2]
[359423415,1746004252986,-400.0,0.00027397,2]
[359423417,1746004252997,-400.0,0.00027397,2]
[359423419,1746004253007,-518.38683979,0.00027397,2]
[359423421,1746004253016,-400.0,0.00027397,2]
[359423423,1746004253025,-400.0,0.00027397,2]
[359423425,1746004253034,-400.0,0.00027397,2]
[359423427,1746004253042,-400.0,0.00027397,2]
[359423429,1746004253050,-1121.98,0.00027397,2]
[359423431,1746004253059,-400.0,0.00027397,2]
[359423433,1746004253070,-400.0,0.00027397,2]
[359423435,1746004253079,-501.69454487,0.00027397,2]
[359423437,1746004253089,-500.25844239,0.00027397,2]
[359423439,1746004253098,-400.0,0.00027397,2]
[359423441,1746004253107,-502.16844272,0.00027397,2]
[359423443,1746004253118,-527.88,0.00027397,2]
[359423444,1746004253128,-400.0,0.00027397,2]
[359423446,1746004253140,-400.0,0.00027397,2]
[359423448,1746004253152,-400.0,0.00027397,2]
[359423450,1746004253162,-500.55053846,0.00027397,2]
[359423452,1746004253171,-400.0,0.00027397,2]
[359423454,1746004253180,-400.0,0.00027397,2]
[359423456,1746004253189,-400.0,0.00027397,2]
[359423458,1746004253198,-400.0,0.00027397,2]
[359423460,1746004253208,-400.0,0.00027397,2]
[359423462,1746004253218,-400.0,0.00027397,2]
[359423464,1746004253228,-400.0,0.00027397,2]
[359423466,1746004253238,-400.0,0.00027397,2]
[359423468,1746004253248,-400.0,0.00027397,2]
[359423470,1746004253257,-400.0,0.00027397,2]
[359423472,1746004253267,-501.45994062,0.00027397,2]
[359423474,1746004253276,-400.0,0.00027397,2]
[359423476,1746004253285,-500.18,0.00027397,2]
[359423478,1746004253295,-501.22231262,0.00027397,2]
[359423480,1746004253304,-400.0,0.00027397,2]
[359423482,1746004253314,-400.0,0.00027397,2]
[359423483,1746004253325,-400.0,0.00027397,2]
[359423484,1746004253334,-500.0,0.00027397,2]
[359423485,1746004253344,-300.0,0.00027397,2]
[359423486,1746004253354,-400.0,0.00027397,2]
[359423487,1746004253364,-500.0,0.00027397,2]
[359423488,1746004253374,-400.0,0.00027397,2]
[359423489,1746004253384,-502.52922372,0.00027397,2]
[359423490,1746004253394,-405.6985674,0.00027397,2]
[359423491,1746004253403,-400.0,0.00027397,2]
[359423492,1746004253413,-400.0,0.00027397,2]
[359423493,1746004253422,-400.0,0.00027397,2]
[359423494,1746004253432,-500.0,0.00027397,2]
[359423500,1746004253476,-400.0,0.00027397,2]
[359423502,1746004253485,-400.97685034,0.00027397,2]
[359423504,1746004253495,-500.0,0.00027397,2]
[359423506,1746004253507,-400.0,0.00027397,2]
[359423508,1746004253516,-400.0,0.00027397,2]
[359423510,1746004253526,-501.71514484,0.00027397,2]
[359423512,1746004253536,-500.0,0.00027397,2]
[359423514,1746004253546,-500.0,0.00027397,2]
[359423516,1746004253556,-400.0,0.00027397,2]
[359423518,1746004253565,-400.0,0.00027397,2]
[359423520,1746004253575,-502.59830168,0.00027397,2]
[359423522,1746004253584,-400.0,0.00027397,2]
[359423524,1746004253593,-400.0,0.00027397,2]
[359423526,1746004253602,-400.0,0.00027397,2]
[359423528,1746004253611,-400.0,0.00027397,2]
[359423530,1746004253620,-340.204998,0.00027397,2]
[359423532,1746004253630,-400.0,0.00027397,2]
[359423534,1746004253639,-399.56432562,0.00027397,2]
[359423536,1746004253648,-400.0,0.00027397,2]
[359423537,1746004253657,-400.0,0.00027397,2]
[359423539,1746004253666,-502.54801393,0.00027397,2]
[359423541,1746004253675,-678.6,0.00027397,2]
[359423543,1746004253685,-501.02422925,0.00027397,2]
[359423545,1746004253694,-522.94757701,0.00027397,2]
[359423547,1746004253704,-400.0,0.00027397,2]
[359423549,1746004253713,-501.43115037,0.00027397,2]
[359423551,1746004253723,-430.9,0.00027397,2]
[359423554,1746004253733,-400.0,0.00027397,2]
[359423556,1746004253743,-400.0,0.00027397,2]
[359423558,1746004253752,-400.0,0.00027397,2]
[359423560,1746004253761,-1042.6,0.00027397,2]
[359423561,1746004253771,-400.0,0.00027397,2]
[359423564,1746004253781,-400.0,0.00027397,2]
[359423565,1746004253791,-484.98256854,0.00027397,2]
[359423567,1746004253800,-400.0,0.00027397,2]
[359423569,1746004253809,-500.0,0.00027397,2]
[359423572,1746004253819,-302.79426569,0.00027397,2]
[359423574,1746004253830,-154.04206309,0.00027397,2]
[359423575,1746004253839,-400.0,0.00027397,2]
[359423577,1746004253848,-400.0,0.00027397,2]
[359423579,1746004253858,-400.0,0.00027397,2]
[359423581,1746004253867,-304.17733614,0.00027397,2]
[359423583,1746004253876,-400.0,0.00027397,2]
[359423585,1746004253885,-400.0,0.00027397,2]
[359423587,1746004253894,-400.0,0.00027397,2]
[359423589,1746004253904,-400.0,0.00027397,2]
[359423591,1746004253914,-204.19579695,0.00027397,2]
[359423593,1746004253923,-400.0,0.00027397,2]
[359423595,1746004253933,-400.0,0.00027397,2]
[359423597,1746004253943,-400.0,0.00027397,2]
[359423599,1746004253953,-400.0,0.00027397,2]
[359423601,1746004253962,-400.0,0.00027397,2]
[359423603,1746004253971,-501.28901554,0.00027397,2]
[359423605,1746004253981,-400.0,0.00027397,2]
[359423607,1746004253991,-400.0,0.00027397,2]
[359423609,1746004254000,-400.0,0.00027397,2]
[359423611,1746004254011,-400.0,0.00027397,2]
[359423614,1746004254021,-1131.43,0.00027397,2]
[359423616,1746004254031,-400.0,0.00027397,2]
[359423618,1746004254040,-400.0,0.00027397,2]
[359423620,1746004254050,-400.0,0.00027397,2]
[359423622,1746004254059,-502.20724283,0.00027397,2]
[359423624,1746004254068,-412.64071358,0.00027397,2]
[359423626,1746004254078,-1647.78,0.00027397,2]
[359423628,1746004254087,-400.0,0.00027397,2]
[359423630,1746004254096,-400.0,0.00027397,2]
[359423632,1746004254106,-400.0,0.00027397,2]
[359423634,1746004254115,-506.27089494,0.00027397,2]
[359423636,1746004254125,-211.52829867,0.00027397,2]
[359423638,1746004254135,-400.0,0.00027397,2]
[359423639,1746004254144,-400.0,0.00027397,2]
[359423641,1746004254153,-400.0,0.00027397,2]
[359423643,1746004254163,-538.43810251,0.00027397,2]
[359423646,1746004254173,-527.44449926,0.00027397,2]
[359423648,1746004254182,-400.0,0.00027397,2]
[359423650,1746004254191,-400.0,0.00027397,2]
[359423652,1746004254202,-401.01709977,0.00027397,2]
[359423653,1746004254211,-400.0,0.00027397,2]
[359423656,1746004254221,-400.0,0.00027397,2]
[359423658,1746004254233,-400.0,0.00027397,2]
[359423660,1746004254243,-500.0,0.00027397,2]
[359423661,1746004254252,-400.0,0.00027397,2]
[359423664,1746004254263,-313.68186891,0.00027397,2]
[359423665,1746004254271,-400.0,0.00027397,2]
[359423667,1746004254281,-307.49423109,0.00027397,2]
[359423669,1746004254290,-400.0,0.00027397,2]
[359423672,1746004254300,-400.0,0.00027397,2]
[359423674,1746004254310,-400.0,0.00027397,2]
[359423676,1746004254320,-400.0,0.00027397,2]
[359423678,1746004254330,-400.0,0.00027397,2]
[359423680,1746004254340,-579.23,0.00027397,2]
[359423682,1746004254349,-400.0,0.00027397,2]
[359423683,1746004254359,-400.0,0.00027397,2]
[359423684,1746004254369,-579.23,0.00027397,2]
[359423685,1746004254378,-579.23,0.00027397,2]
[359423686,1746004254388,-579.23,0.00027397,2]
[359423687,1746004254397,-400.0,0.00027397,2]
[359423688,1746004254407,-579.23,0.00027397,2]
[359423689,1746004254417,-579.23,0.00027397,2]
[359423690,1746004254427,-579.23,0.00027397,2]
[359423691,1746004254438,-400.0,0.00027397,2]
[359423692,1746004254448,-579.23,0.00027397,2]
[359423693,1746004254459,-579.23,0.00027397,2]
[359423694,1746004254469,-579.23,0.00027397,2]
[359423695,1746004254479,-579.23,0.00027397,2]
[359423696,1746004254489,-400.0,0.00027397,2]
[359423697,1746004254502,-579.23,0.00027397,2]
[359423698,1746004254512,-500.0,0.00027397,2]
[359423699,1746004254522,-579.23,0.00027397,2]
[359423700,1746004254532,-500.0,0.00027397,2]
[359423701,1746004254543,-579.23,0.00027397,2]
[359423702,1746004254553,-500.0,0.00027397,2]
[359423703,1746004254563,-579.23,0.00027397,2]
[359423704,1746004254574,-500.0,0.00027397,2]
[359423705,1746004254584,-579.23,0.00027397,2]
[359423706,1746004254594,-500.0,0.00027397,2]
[359423707,1746004254604,-579.23,0.00027397,2]
[359423708,1746004254613,-579.23,0.00027397,2]
[359423709,1746004254623,-500.0,0.00027397,2]
[359423710,1746004254633,-579.23,0.00027397,2]
[359423711,1746004254643,-500.0,0.00027397,2]
[359423712,1746004254653,-579.23,0.00027397,2]
[359423713,1746004254663,-500.0,0.00027397,2]
[359423714,1746004254672,-579.23,0.00027397,2]
[359423715,1746004254682,-500.0,0.00027397,2]
[359423716,1746004254692,-579.23,0.00027397,2]
[359423717,1746004254702,-500.0,0.00027397,2]
[359423718,1746004254711,-579.23,0.00027397,2]
[359423719,1746004254722,-500.0,0.00027397,2]
[359423720,1746004254732,-579.25732105,0.00027397,2]
[359423721,1746004254741,-500.0,0.00027397,2]
[359423722,1746004254751,-500.0,0.00027397,2]
[359423723,1746004254761,-400.0,0.00027397,2]
[359423724,1746004254772,-500.0,0.00027397,2]
[359423725,1746004254781,-500.0,0.00027397,2]
[359423726,1746004254791,-400.0,0.00027397,2]
[359423727,1746004254801,-500.0,0.00027397,2]
[359423728,1746004254811,-400.0,0.00027397,2]
[359423729,1746004254821,-544.19924734,0.00027397,2]
[359423730,1746004254831,-593.18,0.00027397,2]
[359423731,1746004254840,-318.09020635,0.00027397,2]
[359423733,1746004254850,-400.0,0.00027397,2]
[359423735,1746004254860,-400.0,0.00027397,2]
[359423737,1746004254870,-400.0,0.00027397,2]
[359423739,1746004254879,-400.0,0.00027397,2]
[359423741,1746004254890,-894.3,0.00027397,2]
[359423743,1746004254900,-400.0,0.00027397,2]
[359423745,1746004254910,-400.0,0.00027397,2]
[359423747,1746004254919,-400.0,0.00027397,2]
[359423749,1746004254929,-400.0,0.00027397,2]
[359423751,1746004254939,-400.0,0.00027397,2]
[359423753,1746004254948,-400.0,0.00027397,2]
[359423755,1746004254959,-400.0,0.00027397,2]
[359423757,1746004254968,-500.0,0.00027397,2]
[359423759,1746004254978,-500.0,0.00027397,2]
[359423762,1746004254988,-400.0,0.00027397,2]
[359423764,1746004254998,-439.0,0.00027397,2]
[359423766,1746004255007,-400.0,0.00027397,2]
[359423768,1746004255017,-400.0,0.00027397,2]
[359423770,1746004255027,-892.79,0.00027397,2]
[359423772,1746004255036,-503.89950687,0.00027397,2]
[359423774,1746004255046,-400.0,0.00027397,2]
[359423776,1746004255055,-400.0,0.00027397,2]
[359423778,1746004255065,-400.0,0.00027397,2]
[359423780,1746004255075,-400.0,0.00027397,2]
[359423782,1746004255084,-400.0,0.00027397,2]
[359423784,1746004255094,-400.0,0.00027397,2]
[359423786,1746004255104,-400.0,0.00027397,2]
[359423788,1746004255114,-400.0,0.00027397,2]
[359423790,1746004255124,-400.0,0.00027397,2]
[359423792,1746004255135,-375.18678572,0.00027397,2]
[359423794,1746004255145,-501.10253242,0.00027397,2]
[359423796,1746004255155,-456.31,0.00027397,2]
[359423798,1746004255165,-400.0,0.00027397,2]
[359423800,1746004255175,-500.0,0.00027397,2]
[359423802,1746004255185,-400.0,0.00027397,2]
[359423804,1746004255196,-500.76544852,0.00027397,2]
[359423805,1746004255206,-400.0,0.00027397,2]
[359423806,1746004255216,-529.2,0.00027397,2]
[359423807,1746004255226,-400.0,0.00027397,2]
[359423808,1746004255236,-400.0,0.00027397,2]
[359423809,1746004255246,-500.0,0.00027397,2]
[359423810,1746004255256,-400.0,0.00027397,2]
[359423811,1746004255266,-698.72,0.00027397,2]
[359423812,1746004255277,-1798.78,0.00027397,2]
[359423813,1746004255287,-400.0,0.00027397,2]
[359423814,1746004255297,-434.13706759,0.00027397,2]
[359423815,1746004255307,-400.0,0.00027397,2]
[359423816,1746004255318,-400.0,0.00027397,2]
[359423817,1746004255327,-400.0,0.00027397,2]
[359423818,1746004255337,-500.0,0.00027397,2]
[359423819,1746004255347,-504.03160662,0.00027397,2]
[359423820,1746004255357,-400.0,0.00027397,2]
[359423821,1746004255367,-400.0,0.00027397,2]
[359423822,1746004255377,-548.04098671,0.00027397,2]
[359423823,1746004255387,-263.90455548,0.00027397,2]
[359423824,1746004255396,-1193.1,0.00027397,2]
[359423825,1746004255406,-400.0,0.00027397,2]
[359423826,1746004255416,-331.86052575,0.00027397,2]
[359423827,1746004255426,-400.0,0.00027397,2]
[359423828,1746004255436,-400.0,0.00027397,2]
[359423829,1746004255446,-400.0,0.00027397,2]
[359423830,1746004255457,-400.0,0.00027397,2]
[359423831,1746004255468,-400.0,0.00027397,2]
[359423832,1746004255478,-400.0,0.00027397,2]
[359423833,1746004255489,-400.0,0.00027397,2]
[359423834,1746004255499,-400.0,0.00027397,2]
[359423835,1746004255510,-400.0,0.00027397,2]
[359423836,1746004255521,-747.16,0.00027397,2]
[359423837,1746004255531,-401.70035363,0.00027397,2]
[359423838,1746004255542,-400.0,0.00027397,2]
[359423839,1746004255552,-400.0,0.00027397,2]
[359423840,1746004255562,-682.54,0.00027397,2]
[359423841,1746004255572,-2595.09,0.00027397,2]
[359423842,1746004255582,-400.0,0.00027397,2]
[359423843,1746004255594,-501.00591828,0.00027397,2]
[359423844,1746004255604,-504.02554154,0.00027397,2]
[359423845,1746004255613,-696.07,0.00027397,2]
[359423846,1746004255623,-400.0,0.00027397,2]
[359423847,1746004255633,-5704.43,0.00027397,2]
[359423848,1746004255642,-400.0,0.00027397,2]
[359423849,1746004255650,-400.0,0.00027397,2]
[359423850,1746004255658,-502.50689988,0.00027397,2]
[359423851,1746004255667,-400.0,0.00027397,2]
[359423852,1746004255676,-505.57680793,0.00027397,2]
[359423853,1746004255687,-400.0,0.00027397,2]
[359423854,1746004255697,-500.87219632,0.00027397,2]
[359423855,1746004255707,-400.0,0.00027397,2]
[359423856,1746004255718,-1917.63,0.00027397,2]
[359423857,1746004255728,-400.0,0.00027397,2]
[359423858,1746004255742,-400.0,0.00027397,2]
[359423859,1746004255752,-400.0,0.00027397,2]
[359423860,1746004255763,-400.0,0.00027397,2]
[359423861,1746004255774,-1856.74,0.00027397,2]
[359423862,1746004255783,-1848.81,0.00027397,2]
[359423863,1746004255793,-400.0,0.00027397,2]
[359423864,1746004255803,-708.44,0.00027397,2]
[359423865,1746004255812,-500.0,0.00027397,2]
[359423866,1746004255821,-400.0,0.00027397,2]
[359423867,1746004255833,-400.0,0.00027397,2]
[359423868,1746004255843,-500.0,0.00027397,2]
[359423869,1746004255854,-400.0,0.00027397,2]
[359423870,1746004255866,-1539.05,0.00027397,2]
[359423871,1746004255877,-400.0,0.00027397,2]
[359423872,1746004255888,-400.0,0.00027397,2]
[359423873,1746004255899,-524.55,0.00027397,2]
[359423874,1746004255911,-400.0,0.00027397,2]
[359423875,1746004255922,-400.0,0.00027397,2]
[359423876,1746004255932,-501.08667246,0.00027397,2]
[359423877,1746004255943,-400.0,0.00027397,2]
[359423878,1746004255954,-400.0,0.00027397,2]
[359423879,1746004255964,-400.0,0.00027397,2]
[359423880,1746004255974,-500.59553643,0.00027397,2]
[359423881,1746004255984,-2267.82,0.00027397,2]
[359423882,1746004255994,-400.0,0.00027397,2]
[359423883,1746004256004,-400.0,0.00027397,2]
[359423884,1746004256015,-400.0,0.00027397,2]
[359423885,1746004256025,-1119.81,0.00027397,2]
[359423886,1746004256036,-400.0,0.00027397,2]
[359423887,1746004256047,-400.0,0.00027397,2]
[359423888,1746004256058,-400.0,0.00027397,2]
[359423889,1746004256068,-916.52,0.00027397,2]
[359423890,1746004256078,-400.0,0.00027397,2]
[359423891,1746004256088,-310.96750939,0.00027397,2]
[359423892,1746004256201,-400.0,0.00027397,2]
[359423893,1746004256210,-400.0,0.00027397,2]
[359423894,1746004256219,-400.0,0.00027397,2]
[359423895,1746004256228,-618.79,0.00027397,2]
[359423896,1746004256237,-400.0,0.00027397,2]
[359423897,1746004256246,-400.0,0.00027397,2]
[359423898,1746004256255,-4464.26,0.00027397,2]
[359423899,1746004256264,-400.0,0.00027397,2]
[359423900,1746004256273,-3828.77,0.00027397,2]
[359423901,1746004256282,-212.17621799,0.00027397,2]
[359423902,1746004256291,-400.0,0.00027397,2]
[359423903,1746004256300,-400.0,0.00027397,2]
[359423904,1746004256310,-400.0,0.00027397,2]
[359423905,1746004256319,-400.0,0.00027397,2]
[359423906,1746004256330,-400.0,0.00027397,2]
[359423907,1746004256340,-400.0,0.00027397,2]
[359423908,1746004256349,-954.09,0.00027397,2]
[359423909,1746004256359,-1374.51,0.00027397,2]
[359423910,1746004256369,-528.76389003,0.00027397,2]
[359423911,1746004256378,-400.0,0.00027397,2]
[359423912,1746004256389,-400.0,0.00027397,2]
[359423913,1746004256398,-1002.92,0.00027397,2]
[359423914,1746004256408,-400.0,0.00027397,2]
[359423915,1746004256418,-400.0,0.00027397,2]
[359423916,1746004256428,-400.0,0.00027397,2]
[359423917,1746004256438,-400.0,0.00027397,2]
[359423918,1746004256449,-400.0,0.00027397,2]
[359423919,1746004256461,-400.0,0.00027397,2]
[359423920,1746004256471,-400.0,0.00027397,2]
[359423921,1746004256480,-500.0,0.00027397,2]
[359423922,1746004256490,-400.0,0.00027397,2]
[359423923,1746004256501,-494.25,0.00027397,2]
[359423924,1746004256510,-700.77,0.00027397,2]
[359423925,1746004256520,-470.92,0.00027397,2]
[359423926,1746004256530,-505.18,0.00027397,2]
[359423927,1746004256542,-400.0,0.00027397,2]
[359423928,1746004256552,-400.0,0.00027397,2]
[359423929,1746004256562,-400.0,0.00027397,2]
[359423930,1746004256571,-400.0,0.00027397,2]
[359423931,1746004256582,-400.0,0.00027397,2]
[359423932,1746004256593,-400.0,0.00027397,2]
[359423933,1746004256603,-400.0,0.00027397,2]
[359423934,1746004256613,-744.3,0.00027397,2]
[359423935,1746004256622,-400.0,0.00027397,2]
[359423936,1746004256631,-1692.3,0.00027397,2]
[359423937,1746004256640,-318.27576095,0.00027397,2]
[359423938,1746004256649,-400.0,0.00027397,2]
[359423939,1746004256658,-752.68,0.00027397,2]
[359423940,1746004256666,-502.94951878,0.00027397,2]
[359423941,1746004256675,-300.71693523,0.00027397,2]
[359423942,1746004256684,-400.0,0.00027397,2]
[359423943,1746004256692,-400.0,0.00027397,2]
[359423944,1746004256702,-402.8089133,0.00027397,2]
[359423945,1746004256711,-500.0,0.00027397,2]
[359423946,1746004256720,-400.0,0.00027397,2]
[359423947,1746004256729,-200.0,0.00027397,2]
[359423948,1746004256738,-400.0,0.00027397,2]
[359423949,1746004256748,-400.0,0.00027397,2]
[359423950,1746004256758,-400.99117708,0.00027397,2]
[359423951,1746004256767,-452.53,0.00027397,2]
[359423952,1746004256776,-400.0,0.00027397,2]
[359423953,1746004256786,-400.91610002,0.00027397,2]
[359423954,1746004256795,-500.0,0.00027397,2]
[359423955,1746004256805,-400.0,0.00027397,2]
[359423956,1746004256815,-400.0,0.00027397,2]
[359423957,1746004256825,-676.239152,0.00027397,2]
[359423958,1746004256835,-190.0,0.00027397,3]
[359423959,1746004256844,-152.0,0.00027605,2]
[359423960,1746004256853,-1118.02321717,0.00027609,2]
[359423961,1746004256863,-8677.47627896,0.00027651,2]
[359423962,1746004256872,-1000.0,0.00027655,2]
[359423963,1746004256882,-2792.0,0.00027655,2]
[359423964,1746004256891,-2792.0,0.00027655,2]
[359423965,1746004256902,-2792.0,0.00027655,2]
[359423966,1746004256911,-2792.0,0.00027655,2]
[359423967,1746004256921,-17354.9525579,0.00027661,2]
[359423968,1746004256930,-500.0,0.00027671,2]
[359423969,1746004256939,-400.0,0.00027671,2]
[359423970,1746004256949,-400.0,0.00027671,2]
[359423971,1746004256958,-400.0,0.00027671,2]
[359423972,1746004256968,-400.0,0.00027671,2]
[359423973,1746004256978,-400.0,0.00027671,2]
[359423974,1746004256988,-400.0,0.00027671,2]
[359423975,1746004256997,-400.0,0.00027671,2]
[359423976,1746004257007,-400.0,0.00027671,2]
[359423977,1746004257019,-400.0,0.00027671,2]
[359423978,1746004257028,-400.0,0.00027671,2]
[359423979,1746004257038,-400.0,0.00027671,2]
[359423980,1746004257048,-400.0,0.00027671,2]
[359423981,1746004257059,-400.0,0.00027671,2]
[359423982,1746004257069,-400.0,0.00027671,2]
[359423983,1746004257080,-664.86,0.00027671,2]
[359423984,1746004257090,-630.33,0.00027671,2]
[359423985,1746004257100,-400.0,0.00027671,2]
[359423986,1746004257109,-503.39622835,0.00027671,2]
[359423987,1746004257120,-400.0,0.00027671,2]
[359423988,1746004257131,-400.0,0.00027671,2]
[359423989,1746004257142,-400.0,0.00027671,2]
[359423990,1746004257152,-400.0,0.00027671,2]
[359423991,1746004257162,-400.0,0.00027671,2]
[359423992,1746004257172,-400.0,0.00027671,2]
[359423993,1746004257182,-400.0,0.00027671,2]
[359423994,1746004257192,-400.0,0.00027671,2]
[359423995,1746004257202,-400.0,0.00027671,2]
[359423996,1746004257212,-400.0,0.00027671,2]
[359423997,1746004257222,-400.0,0.00027671,2]
[359423998,1746004257232,-400.0,0.00027671,2]
[359423999,1746004257242,-681.99,0.00027671,2]
[359424000,1746004257251,-400.0,0.00027671,2]
[359424001,1746004257261,-400.0,0.00027671,2]
[359424002,1746004257271,-400.0,0.00027671,2]
[359424003,1746004257281,-400.0,0.00027671,2]
[359424004,1746004257291,-400.0,0.00027671,2]
[359424005,1746004257301,-400.0,0.00027671,2]
[359424006,1746004257311,-400.0,0.00027671,2]
[359424007,1746004257320,-400.0,0.00027671,2]
[359424008,1746004257330,-400.0,0.00027671,2]
[359424009,1746004257340,-400.0,0.00027671,2]
[359424010,1746004257349,-400.0,0.00027671,2]
[359424011,1746004257359,-400.0,0.00027671,2]
[359424012,1746004257369,-400.0,0.00027671,2]
[359424013,1746004257378,-356.93049559,0.00027671,2]
[359424014,1746004257388,-432.67,0.00027671,2]
[359424015,1746004257397,-362.88985411,0.00027671,2]
[359424016,1746004257407,-400.0,0.00027671,2]
[359424017,1746004257417,-408.21366976,0.00027671,2]
[359424018,1746004257426,-400.0,0.00027671,2]